bitfinex/quotes_ETHUSD_20250711
["timestamp","ask_amount","ask_price","bid_price","bid_amount"]
[1752211892105,8.319,2993.6,2991.2,4.28612232]
[1752211892312,0.97669305,2993.5,2991.3,3.77162881]
[1752211892519,3.34070199,2993.4,2991.4,10.0]
[1752211892704,0.97669305,2993.5,2991.4,3.34291636]
[1752211892915,0.97669305,2993.5,2991.3,0.42861223]
[1752211892916,0.7996,2993.8,2991.5,13.37620233]
[1752211893103,8.321,2993.7,2991.9,0.55]
[1752211893302,8.321,2993.7,2991.3,0.42861223]
[1752211893541,3.34092847,2993.2,2991.4,3.34291104]
[1752211893742,3.34104203,2993.1,2991.5,0.55]
[1752211893907,3.34104203,2993.1,2990.3,3.34411169]
[1752211893908,0.55,2993.3,2989.9,0.9304]
[1752211894108,3.34135257,2992.8,2989.9,0.9304]
[1752211894333,0.89827222,2993.4,2989.9,0.9304]
[1752211894508,10.0,2993.0,2989.9,0.9304]
[1752211894720,10.0,2993.0,2988.5,9.43437095]
[1752211894721,10.0,2992.4,2988.8,0.9885]
[1752211895046,10.0,2992.4,2988.3,11.34835265]
[1752211895047,8.007,2994.3,2991.2,3.34308189]
[1752211895342,8.007,2994.3,2991.4,0.55]
[1752211895343,8.421,2993.3,2991.4,0.55]
[1752211895543,8.421,2993.3,2991.6,0.55]
[1752211895711,0.89827222,2993.4,2992.1,0.55]
[1752211895912,8.007,2994.3,2992.9,0.55]
[1752211896131,8.007,2994.3,2992.2,0.03342022]
[1752211896132,8.007,2994.3,2993.3,0.55]
[1752211896331,8.007,2994.3,2993.8,0.1664]
[1752211896332,8.1734,2994.3,2993.8,0.1664]
[1752211896513,8.007,2994.3,2993.0,10.0]
[1752211896717,0.1664,2993.8,2993.4,0.55]
[1752211897122,8.396,2993.7,2993.4,0.55]
[1752211897317,8.396,2993.7,2993.3,0.1664]
[1752211897645,0.1664,2993.8,2993.4,0.03340682]
[1752211898143,0.1664,2993.4,2992.9,0.55]
[1752211898349,8.379,2993.3,2992.9,0.55]
[1752211898513,8.379,2993.3,2992.5,0.55]
[1752211898715,0.1664,2993.2,2992.7,0.55]
[1752211899550,0.1664,2993.2,2992.6,0.1664]
[1752211899743,0.85454,2993.2,2990.7,0.8949]
[1752211900044,0.85454,2993.2,2991.9,0.1664]
[1752211900045,0.1664,2992.4,2991.9,0.1664]
[1752211900253,0.1664,2992.4,2990.7,0.8949]
[1752211900254,8.34,2992.3,2990.7,0.8949]
[1752211900424,0.1664,2991.4,2990.9,0.1664]
[1752211900618,8.331,2991.4,2990.0,0.987]
[1752211900829,0.1664,2991.1,2990.5,0.1664]
[1752211901327,0.1664,2991.1,2990.6,0.0334381]
[1752211901517,10.0,2992.1,2990.1,0.002]
[1752211901518,8.011,2991.3,2990.1,0.002]
[1752211901714,9.1151,2991.2,2990.1,0.002]
[1752211902152,10.0,2991.1,2990.1,0.002]
[1752211902336,10.4831,2990.9,2990.1,0.002]
[1752211902679,3.34413371,2990.4,2990.1,0.002]
[1752211902815,3.34394433,2990.5,2990.1,0.002]
[1752211903023,8.293,2990.4,2990.1,0.002]
[1752211903497,3.3442579,2990.2,2990.1,0.002]
[1752211903764,8.285,2990.2,2990.1,0.002]
[1752211903947,3.3441495,2990.3,2990.1,0.002]
[1752211904242,3.34492003,2989.7,2988.2,0.9602]
[1752211904448,3.82815471,2989.5,2988.1,0.04]
[1752211904621,0.4831,2989.5,2988.1,0.04]
[1752211904817,3.89545121,2989.2,2988.1,0.04]
[1752211905134,0.55,2989.2,2988.1,0.04]
[1752211905320,10.55,2988.9,2988.1,0.04]
[1752211905649,0.334492,2989.6,2987.1,0.04]
[1752211905650,0.55,2988.7,2987.1,0.04]
[1752211905954,9.8011,2988.8,2987.1,0.04]
[1752211906169,0.55,2988.6,2987.1,0.04]
[1752211906405,10.0,2988.7,2987.1,0.04]
[1752211906677,10.0,2988.5,2987.1,0.04]
[1752211906837,8.261,2988.6,2987.1,10.04]
[1752211907036,1.5381,2988.8,2987.4,0.55]
[1752211907037,0.4831,2988.8,2987.4,0.55]
[1752211907267,0.4831,2989.5,2987.8,3.34694423]
[1752211907568,1.36215432,2990.3,2988.7,0.55]
[1752211907867,8.02,2990.9,2988.8,0.42306039]
[1752211908052,8.02,2990.9,2988.5,4.30644465]
[1752211908053,8.249,2990.8,2989.1,10.0]
[1752211908368,8.02,2990.9,2989.2,0.03345376]
[1752211908544,8.249,2990.8,2989.5,0.55]
[1752211908745,8.249,2990.8,2989.2,0.55]
[1752211909056,8.249,2990.8,2990.1,10.0]
[1752211909262,16.257,2990.9,2990.1,0.55]
[1752211909560,0.4831,2991.7,2990.4,0.55]
[1752211909561,8.231,2991.3,2990.4,0.55]
[1752211909761,8.231,2991.3,2989.9,0.9018]
[1752211909961,9.0541,2991.3,2989.9,0.9018]
[1752211910262,9.0541,2991.3,2988.9,3.3456679]
[1752211910263,9.0541,2991.3,2989.3,10.0]
[1752211910264,3.34348162,2990.9,2989.3,10.0]
[1752211910460,12.39712914,2991.3,2989.4,0.58345152]
[1752211910666,12.39715065,2991.3,2989.6,0.55]
[1752211910868,3.34313987,2991.2,2989.6,0.55]
[1752211911041,1.23972399,2991.1,2989.2,10.55]
[1752211911371,1.23972399,2991.1,2989.1,0.9366]
[1752211911372,3.3434945,2990.9,2989.1,0.9366]
[1752211911577,3.34457351,2990.0,2988.4,0.9376]
[1752211911777,10.0,2989.8,2987.7,0.9376]
[1752211911988,0.1672,2988.4,2987.9,0.1672]
[1752211912137,0.1672,2988.4,2987.9,3.34682674]
[1752211912338,0.1672,2988.4,2987.8,0.1672]
[1752211912339,0.4831,2989.4,2987.7,0.9376]
[1752211912538,0.1672,2988.7,2988.2,0.1672]
[1752211912775,3.82831357,2989.4,2987.7,4.2845661]
[1752211912960,0.55,2990.5,2987.8,0.03346944]
[1752211913149,0.1672,2988.8,2988.3,0.1672]
[1752211913490,0.1672,2988.8,2988.4,0.03346272]
[1752211913642,1.76260497,2990.9,2987.7,0.9376]
[1752211913643,0.1672,2989.5,2988.7,0.1672]
[1752211913987,0.1672,2989.5,2989.0,0.1672]
[1752211914145,16.181,2990.1,2988.5,10.55]
[1752211914347,17.7991,2990.1,2988.5,1.605]
[1752211914547,21.14347786,2990.1,2988.5,0.55]
[1752211914752,17.7991,2990.1,2988.5,10.55]
[1752211915091,17.7991,2990.1,2988.4,0.55]
[1752211915092,3.34465415,2989.9,2988.4,0.55]
[1752211915256,17.7991,2990.1,2988.4,0.55]
[1752211915442,3.34449086,2990.0,2988.5,0.55]
[1752211915644,0.84162612,2990.0,2988.6,0.55]
[1752211916087,0.84162612,2990.0,2987.7,0.9376]
[1752211916088,4.18617297,2990.0,2988.0,2.554]
[1752211916288,1.00442007,2989.9,2988.2,10.55]
[1752211916495,8.40997438,2989.8,2988.4,0.55]
[1752211916813,8.104,2989.8,2988.6,0.55]
[1752211917012,1.11638791,2989.7,2988.4,0.03346272]
[1752211917178,0.30632887,2989.6,2987.8,0.03346944]
[1752211917379,0.69843943,2989.5,2987.8,0.03346944]
[1752211917611,8.087,2989.4,2988.8,0.55]
[1752211917813,8.87849313,2990.1,2988.8,0.55]
[1752211918113,1.00644634,2990.0,2989.1,1.1215]
[1752211918277,1.00815826,2989.9,2989.5,0.55]
[1752211918482,8.023,2990.1,2989.2,0.55]
[1752211918483,0.3063237,2989.8,2989.2,0.55]
[1752211918683,0.3063237,2989.7,2989.2,10.55]
[1752211918880,0.85549313,2990.7,2989.1,11.1215]
[1752211919180,2.34960823,2991.5,2988.7,3.34593318]
[1752211919181,0.30671452,2990.6,2990.5,13.89392242]
[1752211919823,0.30679633,2991.4,2990.7,0.55]
[1752211919979,0.30679598,2991.3,2990.9,0.55]
[1752211920180,0.30679598,2991.2,2990.5,0.55]
[1752211920377,8.91649313,2991.6,2990.5,10.55]
[1752211920606,1.01243887,2991.5,2990.6,0.0334381]
[1752211920809,0.85549313,2991.2,2989.6,3.34485093]
[1752211921013,0.70558215,2991.1,2989.8,0.55]
[1752211921236,0.85549313,2991.2,2988.9,4.38929712]
[1752211921237,1.56107528,2991.0,2988.9,1.0436]
[1752211921444,0.85549313,2990.5,2988.9,1.0436]
[1752211921656,9.57807528,2990.4,2989.5,3.34502175]
[1752211921837,9.57807528,2990.4,2988.9,1.0436]
[1752211921838,0.85549313,2990.0,2988.9,1.0436]
[1752211922157,4.90570058,2989.9,2988.9,1.0436]
[1752211922319,9.77260497,2990.3,2988.0,1.1382]
[1752211922320,0.85549313,2989.2,2988.0,1.1382]
[1752211922523,3.34612876,2988.6,2987.2,1.1382]
[1752211922706,0.70558215,2988.5,2987.2,1.1382]
[1752211922907,0.85549313,2988.3,2987.2,1.1382]
[1752211923103,0.85549313,2988.0,2987.2,1.1382]
[1752211923340,0.70558215,2987.9,2987.2,1.1382]
[1752211923553,9.74860497,2988.6,2987.7,3.34705626]
[1752211923554,0.70558215,2987.8,2987.7,3.34705626]
[1752211923723,0.85549313,2988.6,2987.8,3.34694423]
[1752211924047,0.70990621,2988.5,2988.4,15.03337225]
[1752211924240,0.85549313,2989.1,2988.8,0.55]
[1752211924444,0.70984467,2989.0,2988.9,13.92916958]
[1752211924617,2.34960823,2990.0,2989.1,0.55]
[1752211924618,0.85549313,2989.5,2989.1,0.55]
[1752211924821,0.71037375,2989.4,2989.3,10.0]
[1752211925138,0.71037375,2989.4,2989.3,10.7172]
[1752211925344,0.85549313,2989.7,2989.4,0.55]
[1752211925502,0.71108215,2989.6,2988.5,3.34616028]
[1752211925709,0.71108215,2989.6,2988.4,1.1371]
[1752211925710,1.02269313,2989.4,2988.4,1.1371]
[1752211925908,0.1672,2989.2,2988.6,0.1672]
[1752211926108,0.1672,2989.2,2987.7,0.33470563]
[1752211926109,0.71108215,2989.1,2987.7,0.33470563]
[1752211926338,0.1672,2988.9,2988.4,0.1672]
[1752211926542,0.71108215,2988.8,2988.4,0.1672]
[1752211926705,0.71108215,2988.7,2988.4,0.1672]
[1752211926909,0.71108215,2988.7,2987.9,0.03346832]
[1752211926910,0.85549313,2989.3,2988.5,3.37951923]
[1752211927110,0.71173078,2989.2,2988.9,10.55]
[1752211927405,1.76260497,2989.5,2989.4,0.1672]
[1752211927609,1.60269735,2989.5,2989.4,14.06235287]
[1752211927834,0.71235186,2989.5,2989.4,10.7172]
[1752211928015,0.71235186,2989.5,2989.4,14.06235287]
[1752211928552,1.1872531,2990.0,2989.6,0.55]
[1752211928553,0.89034549,2990.0,2989.6,0.55]
[1752211928751,0.89034549,2990.1,2990.0,0.55]
[1752211928951,0.30958,2990.1,2990.0,13.8944816]
[1752211929251,0.30962488,2990.1,2990.0,0.55]
[1752211929456,0.30962488,2990.1,2990.0,3.89448009]
[1752211929661,0.30962488,2990.1,2990.0,14.3006481]
[1752211929825,0.89034549,2990.5,2990.2,0.55]
[1752211930025,8.0464,2991.0,2990.4,0.55]
[1752211930026,0.89034549,2990.6,2990.4,0.55]
[1752211930357,0.31023793,2990.5,2990.4,0.7164]
[1752211930727,0.1664,2991.0,2990.4,0.7164]
[1752211931056,0.31059308,2990.9,2990.6,0.55]
[1752211931220,7.865,2991.2,2990.7,0.1664]
[1752211931427,0.31067162,2991.1,2990.8,0.55]
[1752211931641,0.31067162,2991.0,2990.8,0.55]
[1752211931837,0.31067162,2990.9,2990.8,0.55]
[1752211932245,0.1664,2991.3,2990.8,0.55]
[1752211932447,8.13966902,2991.2,2990.8,0.55]
[1752211932647,0.36046609,2991.1,2990.8,0.55]
[1752211932846,7.829,2991.2,2989.8,10.0]
[1752211932847,8.71934549,2991.2,2989.9,10.0]
[1752211933028,8.71934549,2991.2,2989.3,3.34518396]
[1752211933029,0.1664,2991.0,2990.6,0.55]
[1752211933442,0.1664,2991.0,2990.5,0.1664]
[1752211933758,1.20101263,2990.9,2989.5,3.34501139]
[1752211933946,0.31066714,2990.8,2989.3,1.095]
[1752211934270,7.796,2990.7,2989.5,0.55]
[1752211934477,0.89034549,2991.2,2989.7,3.3448172]
[1752211934677,0.89034549,2991.1,2990.5,0.55]
[1752211934827,0.89034549,2991.4,2991.0,0.55]
[1752211935029,0.89034549,2991.6,2991.1,0.03343251]
[1752211935228,0.89034549,2991.9,2991.0,3.34336071]
[1752211935428,0.001,2992.2,2991.1,0.91776858]
[1752211935635,0.31032074,2992.1,2990.6,11.87206079]
[1752211935835,0.31032074,2992.1,2990.5,7.778]
[1752211935836,0.001,2992.2,2992.1,3.34213428]
[1752211936234,0.001,2992.2,2991.3,0.03343028]
[1752211936235,1.102,2992.1,2991.3,0.03343028]
[1752211936543,8.07228054,2992.0,2990.4,3.34399709]
[1752211936745,8.07228054,2992.0,2990.5,0.33439971]
[1752211936746,0.31028054,2991.9,2990.5,0.33439971]
[1752211936944,0.31028054,2991.8,2990.2,3.34423395]
[1752211937133,3.65292974,2991.7,2990.1,1.0903]
[1752211937337,0.31028054,2991.6,2990.1,1.0903]
[1752211937646,0.31028054,2991.5,2990.2,10.03344257]
[1752211937834,1.9963188,2992.1,2991.2,0.55]
[1752211937835,0.8943188,2992.1,2991.2,0.55]
[1752211938035,0.31051313,2992.0,2991.4,0.55]
[1752211938241,0.001,2992.2,2991.4,0.55]
[1752211938571,0.001,2992.2,2991.3,0.55]
[1752211939174,0.001,2992.2,2991.3,10.55]
[1752211939375,0.001,2992.2,2991.3,0.55]
[1752211939542,0.001,2992.2,2991.5,0.55]
[1752211939738,0.001,2992.2,2991.7,10.55]
[1752211940087,0.001,2992.2,2991.2,1.073]
[1752211940088,0.001,2992.2,2991.9,0.55]
[1752211940238,0.001,2992.2,2991.4,0.55]
[1752211940639,0.001,2992.2,2991.6,0.55]
[1752211940875,0.001,2992.2,2991.8,0.55]
[1752211941039,0.001,2992.2,2992.0,0.55]
[1752211941246,0.001,2992.2,2992.1,0.58342134]
[1752211941445,0.001,2992.2,2992.1,13.89213428]
[1752211941652,0.001,2992.2,2992.1,15.13741495]
[1752211941889,0.001,2992.2,2992.1,16.19511495]
[1752211942052,1.79510961,2994.1,2992.2,10.0]
[1752211942377,1.79510961,2994.1,2992.6,0.55]
[1752211942378,1.0823,2994.1,2992.6,0.55]
[1752211942682,1.0823,2994.1,2992.8,0.55]
[1752211942884,1.0823,2994.1,2992.6,10.0]
[1752211942885,2.29821983,2994.1,2992.7,0.55]
[1752211943050,8.8103,2994.1,2992.9,10.55]
[1752211943381,8.8103,2994.1,2992.9,0.55]
[1752211943581,0.1664,2993.8,2993.3,0.1664]
[1752211943784,8.8103,2994.1,2992.1,5.64504918]
[1752211943785,0.1664,2993.6,2993.1,0.1664]
[1752211944197,0.1664,2993.3,2992.1,1.0577]
[1752211944352,3.34065337,2993.5,2991.7,3.34255396]
[1752211944554,3.34065337,2993.5,2991.6,1.044]
[1752211944555,0.1664,2992.8,2992.3,0.1664]
[1752211944994,0.1664,2992.8,2992.4,0.03341799]
[1752211945195,1.0823,2993.0,2991.6,1.044]
[1752211945365,0.1664,2992.6,2992.1,0.1664]
[1752211945688,0.1664,2992.9,2992.4,0.1664]
[1752211946093,0.1664,2992.9,2992.5,0.58341687]
[1752211946297,0.1664,2993.4,2992.8,0.1664]
[1752211946669,1.0823,2993.6,2992.8,0.1664]
[1752211946880,0.1664,2993.3,2992.8,0.1664]
[1752211947494,0.1664,2993.5,2992.8,0.1664]
[1752211947996,0.1664,2994.1,2993.4,0.1664]
[1752211948181,0.8943188,2996.2,2994.3,0.55]
[1752211948382,1.1152,2995.6,2994.6,10.0]
[1752211948705,0.30821861,2995.5,2994.7,0.58339232]
[1752211948994,1.1166,2996.4,2994.8,0.55]
[1752211949194,8.7486,2996.4,2995.1,0.55]
[1752211949403,8.7486,2996.4,2994.9,0.55]
[1752211949559,1.1166,2996.4,2995.1,0.55]
[1752211949880,0.8943188,2997.7,2995.8,10.55]
[1752211949881,1.1363,2997.1,2995.8,10.55]
[1752211950078,3.3367643,2997.0,2995.8,0.55]
[1752211950284,1.1363,2997.1,2995.3,0.55]
[1752211950285,0.44730643,2996.9,2995.3,0.55]
[1752211950468,1.1363,2997.1,2995.6,10.0]
[1752211950671,1.1363,2997.1,2995.9,0.55]
[1752211950893,1.1363,2997.1,2996.0,0.03337783]
[1752211951092,1.1363,2997.1,2996.1,0.55]
[1752211951296,9.0661,2997.7,2996.3,0.55]
[1752211951511,9.0661,2997.7,2995.6,7.59]
[1752211951512,1.24019011,2997.6,2995.6,7.59]
[1752211951690,1.24019011,2997.6,2995.3,10.0]
[1752211951691,3.33611342,2997.5,2995.7,0.55]
[1752211951887,3.3364504,2997.2,2995.7,0.55]
[1752211952089,1.24019011,2997.6,2995.9,3.88780943]
[1752211952090,8.82919011,2997.6,2995.9,3.88780943]
[1752211952289,8.82919011,2997.6,2996.0,10.03337783]
[1752211952492,3.33631487,2997.4,2995.8,10.0]
[1752211952800,1.78952901,2997.5,2995.7,0.55]
[1752211952999,1.0501,2997.7,2996.4,11.6846]
[1752211953166,1.0501,2997.7,2996.4,1.6846]
[1752211953367,1.0501,2997.7,2996.5,0.03337226]
[1752211953564,7.557,2998.2,2996.8,0.55]
[1752211953791,0.001,2997.7,2997.0,0.55]
[1752211953999,0.001,2997.7,2996.4,1.1346]
[1752211954376,3.33692695,2997.7,2996.4,1.1346]
[1752211954677,3.66970487,2997.6,2996.4,1.1346]
[1752211955082,0.33369269,2997.6,2996.5,0.03337226]
[1752211955407,3.33743005,2996.4,2995.1,1.0562]
[1752211955705,1.1625,2997.1,2995.2,0.33137895]
[1752211955906,1.1625,2997.1,2995.7,10.55]
[1752211956199,1.1625,2997.1,2995.0,13.33883361]
[1752211956200,1.1625,2997.1,2995.9,10.55]
[1752211956509,8.01,2997.5,2996.4,0.55]
[1752211956871,8.01,2997.5,2996.6,0.55]
[1752211957065,8.01,2997.5,2996.2,0.55]
[1752211957465,8.01,2997.5,2995.8,1.0562]
[1752211957671,0.83436927,2997.4,2995.8,1.0562]
[1752211957903,3.33694453,2996.8,2995.2,4.39696116]
[1752211958105,3.33694453,2996.8,2995.3,0.29806443]
[1752211958400,0.1664,2996.4,2995.9,0.1664]
[1752211958604,0.1664,2996.6,2996.1,0.1664]
[1752211959019,0.1664,2996.6,2996.2,0.55]
[1752211959315,7.486,2997.1,2994.8,1.0481]
[1752211959516,0.7486,2997.0,2994.9,0.29807032]
[1752211959680,1.1469,2996.9,2995.3,10.0]
[1752211959880,1.1469,2996.9,2995.8,0.55]
[1752211960079,1.1469,2997.4,2996.0,0.55]
[1752211960305,1.1469,2997.4,2996.1,0.55]
[1752211960505,0.91569,2997.3,2996.1,0.84807032]
[1752211960712,1.1469,2997.4,2996.4,10.55]
[1752211960904,8.01,2997.5,2996.8,0.55]
[1752211961081,8.01,2997.5,2996.9,0.03336781]
[1752211961286,0.001,2997.7,2996.8,0.55]
[1752211961591,0.001,2997.7,2996.9,0.55]
[1752211961992,0.001,2997.7,2996.8,3.33688512]
[1752211961993,0.001,2997.7,2996.5,10.55]
[1752211962207,0.001,2997.7,2996.7,0.55]
[1752211962606,0.001,2997.7,2997.0,0.55]
[1752211962798,0.001,2997.7,2997.6,10.55]
[1752211962991,0.001,2997.7,2997.6,0.55]
[1752211963191,0.001,2997.7,2997.6,13.88600213]
[1752211963415,0.001,2997.7,2997.6,10.29797274]
[1752211963733,0.001,2997.7,2997.6,10.55]
[1752211964027,0.001,2997.7,2997.6,10.84790808]
[1752211964389,0.001,2997.7,2997.6,10.84803737]
[1752211965223,0.001,2997.7,2997.6,14.1840395]
[1752211965426,0.001,2997.7,2997.6,15.93606269]
[1752211966098,0.001,2997.7,2997.6,17.02176269]
[1752211967144,0.001,2997.7,2997.6,24.41364955]
[1752211967451,0.001,2997.7,2997.6,17.02164955]
[1752211968357,1.0851,2999.6,2997.6,17.02164955]
[1752211968358,1.0851,2999.6,2998.6,0.55]
[1752211968524,1.0851,2999.6,2998.8,10.0]
[1752211968733,1.0851,2999.6,2998.9,0.33126979]
[1752211968938,1.0851,2999.6,2998.9,10.03334556]
[1752211969138,1.0851,2999.6,2999.0,0.33126867]
[1752211969365,8.1744,2999.7,2999.2,0.1664]
[1752211969726,8.1744,2999.7,2999.3,0.03334111]
[1752211970027,0.1664,2999.7,2999.2,0.46432423]
[1752211970229,0.1664,2999.7,2999.3,0.03334111]
[1752211970734,1.0581,3000.1,2999.5,0.55]
[1752211970931,0.1664,3000.2,2999.6,0.497662]
[1752211971129,1.0824,3000.6,2999.5,0.55]
[1752211971130,1.0824,3000.6,2999.8,0.55]
[1752211971340,0.1664,3000.5,2999.9,10.46432423]
[1752211971673,0.70600943,3000.7,3000.0,0.29792423]
[1752211971876,1.0612,3000.8,3000.1,0.29792423]
[1752211972174,1.60032823,3001.0,3000.2,0.33125534]
[1752211972382,0.8943188,3001.2,3000.3,10.84792423]
[1752211972538,0.8943188,3001.2,3000.4,0.29792423]
[1752211972737,1.0612,3001.3,3000.5,0.331252]
[1752211972983,0.8943188,3001.4,3000.7,0.55]
[1752211973187,2.70922823,3001.6,3000.8,0.29792423]
[1752211973480,2.70922823,3001.6,3000.9,0.29792423]
[1752211973481,0.8943188,3001.5,3000.9,0.29792423]
[1752211973647,0.8943188,3001.5,3001.0,0.29792423]
[1752211973849,0.8943188,3001.5,3000.1,0.55]
[1752211973850,0.8943188,3001.5,3001.1,0.29792423]
[1752211974162,2.34960823,3002.6,3001.5,0.55]
[1752211974360,2.34960823,3002.6,3002.5,11.0781]
[1752211974674,2.34960823,3002.8,3002.0,10.0]
[1752211974847,1.0921,3003.5,3001.7,0.55]
[1752211975053,2.34960823,3003.1,3001.6,10.0]
[1752211975289,2.34960823,3002.9,3001.3,10.55]
[1752211975574,0.56794297,3003.0,3001.0,0.25001665]
[1752211975873,1.0939,3002.3,3001.0,0.25001665]
[1752211976072,7.299,3002.2,3001.0,0.25001665]
[1752211976273,0.001,3001.5,3001.0,0.25001665]
[1752211976478,0.001,3001.5,3000.2,3.33301583]
[1752211976662,0.001,3001.5,3000.2,1.46663269]
[1752211976983,0.001,3001.5,3000.1,8.0]
[1752211977541,0.001,3001.5,3000.1,9.113]
[1752211977889,0.001,3001.5,2999.4,15.90466677]
[1752211978179,0.001,3001.5,3001.3,10.55]
[1752211978350,0.001,3001.5,3001.4,14.4258785]
[1752211978549,0.001,3001.5,3001.4,16.7267503]
[1752211978954,1.1015,3003.3,3001.5,10.55]
[1752211979279,1.1015,3003.3,3002.0,0.55]
[1752211979507,1.1015,3003.3,3002.2,0.55]
[1752211979799,1.1015,3003.3,3001.7,10.0]
[1752211979969,2.01135,3003.3,3001.8,0.99094445]
[1752211980294,1.1015,3003.9,3002.5,10.0]
[1752211980443,8.3475,3003.9,3002.6,0.03330446]
[1752211980649,8.3475,3003.9,3002.7,10.0]
[1752211980875,1.1015,3003.9,3003.0,10.0]
[1752211981049,1.1015,3003.9,3002.0,1.1089]
[1752211981247,0.55,3003.5,3001.3,1.1089]
[1752211981451,0.55,3003.0,3000.5,3.33277787]
[1752211981746,3.33053669,3002.6,3000.6,0.44416779]
[1752211981946,3.33053669,3002.6,3000.4,1.1089]
[1752211981947,0.1664,3002.0,3001.5,0.1664]
[1752211982148,0.1664,3001.5,3001.0,0.1664]
[1752211982380,0.1664,3001.2,3000.7,0.1664]
[1752211982748,1.0854,3001.7,3000.8,0.03332444]
[1752211982951,1.2518,3001.7,3001.1,0.1664]
[1752211983378,1.2518,3001.7,3000.5,0.60303049]
[1752211983379,1.0854,3001.7,3000.5,0.60303049]
[1752211983765,4.41685935,3001.7,3000.5,0.60303049]
[1752211983973,3.33178187,3001.4,3000.5,0.60303049]
[1752211984173,3.33201737,3001.2,3000.5,0.60303049]
[1752211984380,11.87466879,3001.5,3000.5,0.60303049]
[1752211984381,7.993,3001.5,3000.5,0.60303049]
[1752211984557,1.0791,3000.9,3000.5,0.60303049]
[1752211984955,7.198,3000.8,3000.5,0.60303049]
[1752211985686,8.02571,3000.8,3000.5,0.60303049]
[1752211986868,3.88263652,3000.7,3000.5,0.60303049]
[1752211987063,13.33266679,3000.6,3000.5,0.60303049]
[1752211987254,13.33266679,3000.6,2999.2,0.29845556]
[1752211987255,1.6016,3000.5,2999.2,0.29845556]
[1752211987458,1.6016,3000.5,2999.3,0.29845556]
[1752211987459,0.55,3000.2,2999.3,0.29845556]
[1752211987659,9.049,3000.1,2999.4,0.29845556]
[1752211987867,9.049,3000.1,2998.0,1.0962]
[1752211987868,9.049,3000.1,2999.5,0.29845556]
[1752211988055,7.156,3000.0,2999.6,0.29845556]
[1752211988383,7.156,3000.0,2999.7,0.29845556]
[1752211988590,9.049,3000.1,2998.6,3.33488388]
[1752211988899,9.049,3000.1,2998.7,0.66617724]
[1752211988900,7.148,3000.0,2998.7,0.66617724]
[1752211989193,7.148,3000.0,2998.8,0.29941259]
[1752211989378,7.148,3000.0,2998.9,0.29941259]
[1752211989556,7.994,3000.1,2999.0,0.29941259]
[1752211989557,7.142,2999.9,2999.0,0.29941259]
[1752211989893,7.142,2999.9,2999.1,0.29941259]
[1752211990087,7.994,3000.1,2999.2,0.29941259]
[1752211990306,7.128,3000.0,2999.3,0.3327537]
[1752211990507,7.128,2999.9,2999.4,0.29941259]
[1752211990796,7.128,2999.9,2999.5,0.29941259]
[1752211990960,7.128,2999.9,2999.6,0.29941259]
[1752211991287,7.116,2999.8,2999.7,0.30035543]
[1752211991686,0.82771,3000.8,2999.7,0.30035543]
[1752211991869,11.32830768,3001.0,2999.8,0.33369098]
[1752211992064,11.32830768,3001.0,2999.9,0.30035543]
[1752211992065,10.43935324,3000.9,2999.9,0.30035543]
[1752211992270,7.107,3000.9,3000.0,0.30035543]
[1752211992483,7.107,3000.9,3000.1,0.30035543]
[1752211992715,7.097,3000.8,3000.2,0.33368654]
[1752211992863,7.996,3001.0,3000.3,0.30035543]
[1752211993063,7.996,3001.0,3000.4,0.30035543]
[1752211993308,7.996,3001.0,3000.5,0.30035543]
[1752211993610,0.1664,3000.7,3000.6,0.30035543]
[1752211993905,7.092,3000.9,3000.6,0.30035543]
[1752211993906,3.33244468,3000.8,3000.6,0.30035543]
[1752211994063,3.33244468,3000.8,2999.6,0.1664]
[1752211994258,0.1664,3000.1,2999.7,0.30117584]
[1752211994568,7.082,3000.0,2999.8,0.30117584]
[1752211994783,7.082,3000.0,2999.9,0.30117584]
[1752211995288,8.90883,3001.0,2999.9,0.30117584]
[1752211995289,0.91283,3001.0,2999.9,0.30117584]
[1752211995492,0.1664,3000.2,3000.0,0.30117584]
[1752211995688,0.1664,3000.2,3000.1,0.30117584]
[1752211996296,7.057,3000.2,3000.1,0.30117584]
[1752211996496,0.1664,3000.4,3000.1,0.30117584]
[1752211996683,7.046,3000.3,3000.2,0.30163291]
[1752211996996,0.1664,3000.4,3000.2,0.30163291]
[1752211997200,7.046,3000.3,2999.9,10.1664]
[1752211997525,7.046,3000.3,3000.0,0.30176393]
[1752211997798,0.1664,3000.4,3000.1,0.30176393]
[1752211997979,0.1664,3000.4,3000.0,0.002]
[1752211997980,7.033,3000.3,3000.2,0.30176393]
[1752211998683,0.1664,3000.6,3000.2,0.30176393]
[1752211998883,7.995,3001.5,3000.3,0.30176393]
[1752211998884,7.018,3000.7,3000.3,0.30176393]
[1752211999194,7.018,3000.7,3000.4,0.46816393]
[1752211999401,7.018,3000.7,3000.5,0.30176393]
[1752211999574,7.018,3000.7,3000.0,0.002]
[1752211999575,7.73644,3000.7,3000.6,0.30176393]
[1752211999774,17.995,3001.5,3000.6,0.30176393]
[1752211999775,7.995,3001.5,3000.6,0.30176393]
[1752211999987,7.995,3001.5,3000.7,3.66760454]
[1752212000192,9.0608,3002.9,3000.9,0.55]
[1752212000373,9.0608,3002.9,3001.5,10.0]
[1752212000697,7.007,3002.8,3001.6,3.63330638]
[1752212000997,9.0608,3002.9,3001.7,0.33507838]
[1752212001182,7.008,3002.7,3001.8,0.30176393]
[1752212001498,9.0608,3002.9,3001.6,10.53579297]